bitfinex-derivatives/quotes_ETHF0:USTF0_20251107
["timestamp","ask_amount","ask_price","bid_price","bid_amount"]
[1762535027823,0.49013,3307.6,3307.5,0.49012]
[1762535028724,0.00335887,3308.1,3307.1,4.27793276]
[1762535028926,0.49016,3307.4,3307.3,0.49014]
[1762535029122,0.49017,3307.2,3307.1,4.27793276]
[1762535029326,0.49017,3307.2,3307.1,3.2078]
[1762535029524,0.82307,3307.2,3307.1,3.2078]
[1762535029732,0.49017,3307.2,3307.1,3.2078]
[1762535030231,0.49017,3307.2,3307.1,4.04329]
[1762535031232,0.49015,3307.4,3307.3,0.83544]
[1762535031431,0.49016,3307.3,3307.2,0.68527]
[1762535031824,0.49016,3307.3,3307.2,0.1951]
[1762535032323,0.82307,3307.2,3307.1,3.2078]
[1762535032730,0.49017,3307.3,3307.2,1.03055]
[1762535033530,0.49014,3307.5,3307.4,0.49012]
[1762535034027,0.49014,3307.5,3307.2,0.1951]
[1762535034028,0.49016,3307.3,3307.2,1.03056]
[1762535034924,0.49017,3307.2,3307.1,3.2078]
[1762535035524,0.82307,3307.2,3307.1,3.2078]
[1762535035719,3.371,3307.8,3306.9,0.00358231]
[1762535035720,0.8231,3307.0,3306.9,0.00358231]
[1762535036529,0.49019,3307.1,3307.0,0.3043]
[1762535036829,3.371,3307.8,3306.9,1.07371507]
[1762535036830,0.49018,3307.2,3307.1,0.79446]
[1762535037224,0.49018,3307.2,3307.1,0.3043]
[1762535037426,0.4902,3307.0,3306.9,0.30788231]
[1762535038233,0.4902,3307.0,3306.9,0.49379231]
[1762535038534,0.4902,3307.0,3306.9,0.00358231]
[1762535038733,0.4902,3307.0,3306.9,0.30788231]
[1762535039034,0.49017,3307.2,3307.1,0.79446]
[1762535039223,0.49016,3307.4,3307.3,0.79443]
[1762535040028,3.2078,3307.8,3307.0,1.07013276]
[1762535040325,3.2078,3307.8,3306.9,0.00358231]
[1762535040326,0.4902,3307.0,3306.9,0.00358231]
[1762535040731,0.8218,3307.0,3306.9,0.00358231]
[1762535040930,0.49029,3306.4,3306.3,1.61929997]
[1762535041137,0.3316,3306.4,3306.2,0.80502301]
[1762535041428,3.3532,3306.6,3305.4,2.30301736]
[1762535041429,0.82192,3306.2,3306.1,0.77144533]
[1762535041625,0.49045,3305.4,3305.2,1.56360027]
[1762535041820,3.2078,3306.2,3305.2,1.07315027]
[1762535042021,0.4904,3305.7,3305.5,3.2078]
[1762535042232,0.49042,3305.5,3305.4,0.18983199]
[1762535042528,0.49042,3305.5,3305.4,0.00453199]
[1762535042827,0.82202,3305.5,3305.4,0.00453199]
[1762535043232,8.82202,3305.5,3305.4,3.199e-05]
[1762535044433,0.49059,3304.4,3304.2,0.67591]
[1762535044631,0.49054,3304.7,3304.5,0.49056]
[1762535045034,0.1343,3305.4,3304.5,0.49056]
[1762535045435,0.1343,3305.4,3304.6,0.00453954]
[1762535046035,0.49053,3304.7,3304.6,0.00453954]
[1762535046438,4.02993,3304.7,3304.6,0.00453954]
[1762535046637,12.02993,3304.7,3304.6,0.00453954]
[1762535047339,0.49053,3304.7,3304.6,0.00453954]
[1762535048129,3.2078,3305.2,3304.7,0.49053]
[1762535048536,0.4905,3305.0,3304.9,0.4905]
[1762535048936,0.49047,3305.1,3305.0,0.79477]
[1762535049337,0.4905,3305.0,3304.9,0.49051]
[1762535049534,0.49045,3305.3,3304.8,0.1853]
[1762535049836,0.49041,3305.5,3305.4,0.49043]
[1762535050030,0.49041,3305.5,3305.4,0.98003]
[1762535050428,0.4904,3305.7,3305.4,0.98003]
[1762535050735,0.00453199,3306.0,3305.4,0.67572]
[1762535050937,0.00453199,3306.0,3305.3,0.49043]
[1762535050938,0.49043,3305.4,3305.3,0.49043]
[1762535051240,0.49044,3305.3,3305.2,3.69826]
[1762535051436,0.49043,3305.4,3305.3,0.49043]
[1762535051740,0.00453199,3306.0,3305.6,0.49039]
[1762535052332,0.00453199,3306.0,3305.6,4.00249]
[1762535052532,0.00453199,3306.0,3305.6,3.5121]
[1762535052738,0.00453199,3306.0,3305.9,0.79465]
[1762535052932,0.00309104,3306.2,3306.1,0.79462]
[1762535053136,0.00309104,3306.2,3306.0,0.1853]
[1762535053336,0.49032,3306.1,3306.0,0.49033]
[1762535053536,0.00309104,3306.2,3306.0,0.49033]
[1762535053537,0.00309104,3306.2,3306.1,0.79462]
[1762535054738,0.00309104,3306.2,3305.6,3.2078]
[1762535054942,0.49039,3305.7,3305.6,3.2078]
[1762535055841,0.49038,3305.7,3305.6,4.00248]
[1762535056033,0.00309104,3306.2,3305.7,0.49038]
[1762535056339,0.82198,3305.7,3305.6,3.2078]
[1762535057043,0.49038,3305.7,3305.6,3.2078]
[1762535057243,0.49038,3305.7,3305.6,3.6982]
[1762535057442,0.49038,3305.7,3305.6,3.2078]
[1762535058037,0.49037,3305.9,3305.8,0.49036]
[1762535058240,0.49038,3305.7,3305.6,3.69818]
[1762535058546,0.00309104,3306.2,3306.1,0.79462]
[1762535058942,0.00309104,3306.2,3306.1,4.00242]
[1762535059245,0.49023,3306.8,3306.7,0.3043]
[1762535059539,0.49023,3306.8,3306.7,0.79453]
[1762535060145,0.49291766,3306.8,3306.7,0.79453]
[1762535060643,0.49291766,3306.8,3306.7,0.3043]
[1762535060842,0.49291766,3306.8,3306.7,0.79453]
[1762535061342,0.00268766,3306.8,3306.7,0.79453]
[1762535061640,3.2078,3308.2,3307.2,0.1853]
[1762535061846,3.2078,3307.8,3307.1,3.2078]
[1762535062043,0.4902,3306.9,3306.7,3.2078]
[1762535062444,0.49367256,3306.9,3306.7,3.70082735]
[1762535062637,0.49367256,3306.9,3306.7,3.21059735]
[1762535063144,0.00347256,3306.9,3306.8,0.3043]
[1762535064538,0.49367256,3306.9,3306.8,0.3043]
[1762535064738,0.82182,3306.8,3306.7,3.21059735]
[1762535065642,0.49022,3306.8,3306.7,3.21059735]
[1762535065843,0.82182,3306.8,3306.7,3.21059735]
[1762535066446,12.02962,3306.8,3306.7,0.00279735]
[1762535067243,12.02962,3306.8,3306.4,0.00453954]
[1762535067244,0.3082,3305.5,3305.4,1.07315027]
[1762535067438,0.79864,3305.3,3305.2,1.61929997]
[1762535067639,0.49055,3304.6,3304.5,0.2944]
[1762535068049,0.49053,3304.7,3304.6,0.2944]
[1762535068250,0.49053,3304.7,3304.6,0.29711376]
[1762535068546,0.49052,3304.8,3304.6,0.29711376]
[1762535068747,0.49052,3304.8,3304.6,0.00271376]
[1762535070346,0.49053,3304.7,3304.6,0.49325376]
[1762535070545,0.49053,3304.7,3304.6,0.00271376]
[1762535071543,0.79873,3304.7,3304.6,0.00271376]
[1762535071746,3.21233954,3305.0,3304.3,0.00453954]
[1762535071747,0.79877,3304.4,3304.3,0.00453954]
[1762535071937,4.00657,3304.4,3304.3,0.00453954]
[1762535072848,4.00869474,3304.4,3304.3,0.00824335]
[1762535075744,11.20992474,3304.4,3303.2,0.49075]
[1762535075944,3.2078,3303.7,3303.0,0.1799]
[1762535076545,0.49074,3303.3,3303.2,0.49074]
[1762535076746,0.49072,3303.5,3303.4,0.49072]
[1762535076946,0.49072,3303.5,3303.0,0.18657725]
[1762535076947,3.2078,3303.7,3303.6,0.965]
[1762535077347,3.69848,3303.7,3303.6,0.965]
[1762535078455,3.69848,3303.7,3303.6,0.4743]
[1762535078751,0.49074,3303.4,3303.3,0.78513]
[1762535079640,0.49071,3303.5,3303.4,0.7851]
[1762535079839,3.6985,3303.7,3303.6,0.4907]
[1762535080249,0.4907,3303.7,3303.6,0.4907]
[1762535080956,3.2078,3304.2,3304.1,0.84892]
[1762535081250,0.49068,3303.7,3303.6,3.2078]
[1762535081547,0.49068,3303.7,3303.6,3.6985]
[1762535081855,0.49067,3303.9,3303.8,0.49065]
[1762535082452,0.49065,3304.1,3304.0,0.84892]
[1762535083154,0.49067,3304.0,3303.9,0.84895]
[1762535083355,0.49063,3304.1,3304.0,0.84892]
[1762535083658,0.49068,3303.7,3303.6,4.27016]
[1762535083844,0.49067,3303.8,3303.7,0.49065]
[1762535084046,0.49065,3303.9,3303.8,0.49063]
[1762535084243,3.2078,3304.2,3303.9,0.3583]
[1762535084553,0.00212474,3304.4,3303.6,3.4212]
[1762535084554,0.00212474,3304.4,3304.3,0.3583]
[1762535085047,0.00212474,3304.4,3304.0,3.2078]
[1762535085048,0.49065,3304.1,3304.0,0.49062]
[1762535085251,0.49068,3303.8,3303.7,0.84896]
[1762535086249,0.49068,3303.7,3303.6,0.49069]
[1762535086651,0.49062,3304.1,3304.0,0.49063]
[1762535086950,3.2078,3304.2,3304.0,0.49063]
[1762535087453,0.49077,3303.2,3303.1,0.49077]
[1762535087650,0.49077,3303.1,3303.0,3.21447725]
[1762535087860,0.49077,3303.1,3303.0,0.00667725]
[1762535087861,0.85387,3303.1,3303.0,0.00667725]
[1762535092355,0.49089,3302.3,3302.2,3.2078]
[1762535092557,0.49089,3302.3,3302.2,3.6987]
[1762535093148,3.2078,3302.7,3302.4,0.3583]
[1762535093453,3.2078,3302.7,3302.6,0.84914]
[1762535093649,0.49082,3302.8,3302.7,0.84911]
[1762535094556,0.00453954,3302.9,3302.8,0.84911]
[1762535095259,0.00453954,3302.9,3302.8,0.49081]
[1762535095457,0.00453954,3302.9,3302.8,0.84911]
[1762535095652,0.00453954,3302.9,3302.8,8.84911]
[1762535095852,0.49073,3303.4,3303.3,0.84904]
[1762535096054,3.2078,3303.5,3303.4,0.49073]
[1762535096254,3.69851,3303.5,3303.4,0.81093]
[1762535096760,3.2078,3303.5,3303.4,0.81093]
[1762535097059,0.49071,3303.6,3303.5,0.81091]
[1762535098160,0.49071,3303.6,3303.5,0.3202]
[1762535098356,0.49074,3303.4,3303.3,0.81094]
[1762535098661,0.49068,3303.7,3303.6,0.49069]
[1762535098963,0.00453954,3303.8,3303.7,0.81088]
[1762535099259,0.49068,3303.7,3303.6,0.69189]
[1762535099462,0.00453954,3303.8,3303.7,0.81088]
[1762535099759,0.49520954,3303.8,3303.7,0.81088]
[1762535100464,0.00453954,3303.8,3303.7,0.81088]
[1762535100660,0.00453954,3303.8,3303.7,8.81088]
[1762535100859,0.00212474,3304.4,3304.3,0.81079]
[1762535101164,0.49043,3305.4,3305.3,0.49044]
[1762535101351,3.2078,3306.1,3305.7,0.49038]
[1762535101550,3.2078,3306.6,3306.0,0.5214]
[1762535101754,1.56959305,3306.9,3306.0,0.5214]
[1762535101755,3.2078,3307.1,3306.5,1.01166]
[1762535101960,3.2078,3307.1,3306.9,0.3202]
[1762535101961,0.49019,3307.0,3306.9,0.3202]
[1762535102163,3.21233954,3307.1,3307.0,0.3202]
[1762535102457,3.21517449,3307.1,3306.9,0.00262804]
[1762535102651,3.21517449,3307.1,3306.5,0.00453954]
[1762535102856,0.49025,3306.6,3306.5,0.00453954]
[1762535103051,0.49025,3306.7,3306.5,0.00453954]
[1762535103355,3.69805,3306.7,3306.5,0.00453954]
[1762535103556,0.49038,3305.8,3305.6,3.69819]
[1762535103756,0.49038,3305.8,3305.6,3.21037096]
[1762535103958,0.49035,3306.0,3305.6,3.21037096]
[1762535104262,0.49037,3305.8,3305.6,3.21037096]
[1762535104457,0.3263,3305.7,3305.6,0.00257096]
[1762535104662,0.3263,3305.5,3305.4,0.00453954]
[1762535105260,3.2078,3305.7,3305.4,0.49495954]
[1762535105462,3.2078,3305.7,3305.4,0.00453954]
[1762535105661,0.4904,3305.6,3305.4,0.20913897]
[1762535105961,0.4904,3305.6,3305.4,0.00793897]
[1762535106760,8.0,3305.6,3304.4,0.49057]
[1762535106965,0.49061,3304.2,3304.0,0.2012]
[1762535107367,0.49064,3304.0,3303.9,3.2078]
[1762535107870,0.49331832,3304.0,3303.9,3.21046954]
[1762535108062,0.00267832,3304.0,3303.9,3.21046954]
[1762535108663,3.2078,3305.0,3304.4,0.49057]
[1762535108964,3.2078,3304.6,3304.0,0.2012]
[1762535109668,0.49062,3304.2,3304.0,0.2012]
[1762535110163,0.00708608,3304.6,3304.0,0.2012]
[1762535110364,0.00708608,3304.6,3304.4,0.49057]
[1762535110759,0.00708608,3304.6,3304.5,0.3202]
[1762535111162,3.2078,3305.6,3305.4,0.49043]
[1762535111163,3.69821,3305.6,3305.4,0.49043]
[1762535111362,3.2078,3305.6,3305.5,0.3202]
[1762535111562,0.49037,3305.8,3305.7,0.49038]
[1762535111767,3.2078,3306.0,3305.5,0.3202]
[1762535111964,3.2078,3306.0,3305.4,0.2012]
[1762535111965,0.49041,3305.5,3305.4,0.2012]
[1762535112166,0.49041,3305.5,3305.4,0.00453954]
[1762535112767,0.49041,3305.5,3305.4,0.49496954]
[1762535113164,3.21543504,3306.0,3305.8,0.49035]
[1762535113372,3.70578504,3306.0,3305.9,0.3202]
[1762535113568,3.21543504,3306.0,3305.9,0.81055]
[1762535113770,0.00763504,3306.0,3305.9,0.81055]
[1762535113965,0.00763504,3306.0,3305.9,14.86015]
[1762535114177,3.2078,3307.4,3306.8,0.2012]
[1762535114386,3.2078,3307.4,3307.0,0.49018]
[1762535114592,0.49019,3307.0,3306.9,3.2078]
[1762535114892,0.49026,3306.6,3306.1,0.2012]
[1762535115185,0.0022047,3306.6,3306.4,0.49028]
[1762535115389,0.0022047,3306.6,3306.4,3.69808]
[1762535115584,0.49014,3307.4,3307.2,0.49016]
[1762535115887,3.2078,3307.5,3307.3,0.49014]
[1762535116088,3.2078,3308.5,3307.5,0.2012]
[1762535116285,0.49001,3308.3,3308.1,0.49002]
[1762535116482,0.49249289,3308.3,3308.1,0.49002]
[1762535116682,0.00248289,3308.3,3308.1,0.49002]
[1762535117689,0.49005,3308.0,3307.8,3.2078]
[1762535117883,0.49007,3307.8,3307.7,0.00453954]
[1762535119080,3.2078,3308.1,3307.7,0.00453954]
[1762535119290,0.49007,3307.9,3307.7,0.00453954]
[1762535120290,8.0,3307.9,3306.5,3.2078]
[1762535120490,3.2078,3307.1,3306.6,0.49025]
[1762535120792,0.4903,3306.3,3306.1,3.21056117]
[1762535120995,3.2078,3307.1,3306.1,3.21056117]
[1762535121195,0.49028,3306.4,3306.3,0.49028]
[1762535121488,3.2078,3307.1,3306.1,3.21056117]
[1762535121489,0.49031,3306.3,3306.1,3.21056117]
[1762535121887,0.00453954,3306.7,3306.5,0.49026]
[1762535122090,0.00453954,3306.7,3306.5,3.69806]
[1762535122299,0.00453954,3306.7,3306.5,11.69806]
[1762535122592,3.2078,3307.1,3306.6,14.0488]
[1762535122895,0.49019,3307.0,3306.5,3.2078]
[1762535123196,3.2078,3307.1,3307.0,0.49019]
[1762535123397,0.49021,3306.9,3306.5,3.2078]
[1762535123692,0.49026,3306.6,3306.4,0.69148]
[1762535123893,0.49027,3306.5,3306.4,0.49027]
[1762535124089,3.2078,3307.1,3306.2,0.49031]
[1762535124090,0.4903,3306.3,3306.2,0.49031]
[1762535124399,0.4903,3306.3,3306.1,3.21056117]
[1762535124400,0.49031,3306.2,3306.1,0.00276117]
[1762535124592,0.4903,3306.3,3306.2,0.49031]
[1762535124788,0.49031,3306.2,3306.1,0.00276117]
[1762535126097,3.2078,3306.7,3306.1,0.00276117]
[1762535126297,0.49031,3306.2,3306.1,0.00276117]
[1762535126894,0.49029,3306.4,3306.1,0.49308117]
[1762535127089,3.2078,3307.1,3306.1,3.21056117]
[1762535127496,3.2078,3307.6,3306.9,3.69799]
[1762535127690,3.2078,3307.6,3306.9,3.2078]
[1762535127894,0.49021,3306.9,3306.8,0.49021]
[1762535128193,0.49016,3307.2,3307.1,0.49016]
[1762535128693,0.49027,3306.5,3306.4,0.1796]
[1762535128895,0.49027,3306.6,3306.5,0.49026]
[1762535129192,0.49029,3306.3,3306.2,3.2078]
[1762535129700,0.49029,3306.3,3306.1,0.00276117]
[1762535129701,0.49031,3306.2,3306.1,0.00276117]
[1762535130091,3.2078,3306.7,3306.1,0.00276117]
[1762535130399,0.4903,3306.3,3306.2,0.4903]
[1762535131197,0.49031,3306.2,3306.1,0.00276117]
[1762535131692,3.2078,3306.7,3306.2,0.4903]
[1762535131893,0.49031,3306.2,3306.1,0.00276117]
[1762535132695,0.49032,3306.1,3306.0,3.954e-05]
[1762535132893,0.49043,3305.5,3305.4,0.49041]
[1762535133292,0.49037,3305.8,3305.7,0.49038]
[1762535133696,0.49271813,3305.8,3305.7,0.49262308]
[1762535133890,0.49271813,3305.8,3305.7,0.00224308]
[1762535134094,3.70051813,3305.8,3305.7,0.00224308]
[1762535134502,0.49271813,3305.8,3305.7,0.00224308]
[1762535134997,0.00234813,3305.8,3305.7,0.49262308]
[1762535135390,0.49271813,3305.8,3305.7,0.00224308]
[1762535135594,0.49271813,3305.8,3305.7,0.49262308]
[1762535135904,0.49271813,3305.8,3305.7,0.00224308]
[1762535136097,0.49271813,3305.8,3305.7,0.49262308]
[1762535136402,0.49271813,3305.8,3305.7,0.00224308]
[1762535138003,3.70051813,3305.8,3305.7,0.00224308]
[1762535138198,11.70051813,3305.8,3305.4,0.00453954]
[1762535138392,0.49052,3304.8,3304.7,3.2078]
[1762535138792,0.49052,3304.8,3304.0,0.2012]
[1762535138793,3.2078,3304.8,3304.0,0.2012]
[1762535139000,0.49062,3304.1,3304.0,0.2012]
[1762535139195,0.49052,3304.8,3304.5,0.49056]
[1762535139397,0.49058,3304.4,3304.3,0.49512954]
[1762535139800,0.00453954,3305.0,3304.5,0.49056]
[1762535140001,0.49054,3304.7,3304.6,0.49055]
[1762535140195,0.00453954,3305.0,3304.3,3.21233954]
[1762535140406,0.00453954,3305.0,3304.9,0.4905]
[1762535140795,3.2078,3305.6,3304.9,0.4905]
[1762535140796,3.2078,3305.6,3305.5,0.49041]
[1762535141000,3.6982,3305.6,3305.5,0.49041]
[1762535141302,0.49272813,3305.8,3305.7,0.49038]
[1762535141498,0.00234813,3305.8,3305.7,3.69818]
[1762535141705,4.813e-05,3305.8,3305.7,11.69818]
[1762535141903,4.813e-05,3305.8,3305.7,3.69818]
[1762535142096,4.813e-05,3305.8,3305.7,0.49038]
[1762535142602,4.813e-05,3305.8,3305.7,3.69818]
[1762535143001,4.813e-05,3305.8,3305.7,0.49038]
[1762535143595,0.49038,3305.7,3305.6,3.2078]
[1762535143800,0.49038,3305.7,3305.6,3.6982]
[1762535144002,4.813e-05,3305.8,3305.7,0.49038]
[1762535144198,0.49041813,3305.8,3305.7,0.49038]
[1762535144911,3.2078,3306.4,3306.1,0.1633]
[1762535145104,3.2078,3306.9,3306.8,0.49022]
[1762535145297,3.2078,3306.9,3306.2,3.2078]
[1762535145496,0.49022,3306.8,3306.2,3.2078]
[1762535145705,3.2078,3307.3,3307.0,0.49019]
[1762535146014,0.49018,3307.1,3307.0,0.49369376]
[1762535146312,0.49018,3307.1,3307.0,0.00350376]
[1762535147505,0.49021,3306.9,3306.8,0.00453954]
[1762535147707,3.69801,3306.9,3306.8,0.00453954]
[1762535148603,3.69801,3306.9,3306.8,0.00708564]
[1762535149605,3.2078,3306.9,3306.8,0.66060564]
[1762535149806,3.21091116,3307.3,3306.8,0.49729564]
[1762535150009,0.49021,3306.9,3306.8,0.00708564]
[1762535150704,3.21091116,3307.3,3306.8,0.00708564]
[1762535150906,0.4902,3306.9,3306.8,0.00708564]
[1762535151506,3.21091116,3307.3,3306.8,0.49729564]
[1762535151707,0.49018,3307.1,3306.8,0.49729564]
[1762535152008,0.4902,3306.9,3306.8,0.00708564]
[1762535152312,0.49018,3307.1,3306.9,0.4902]
[1762535152513,0.49018,3307.1,3306.8,0.00708564]
[1762535152514,0.49019,3307.0,3306.8,0.49729564]
[1762535152710,0.4902,3306.9,3306.8,0.00708564]
[1762535152913,0.49018,3307.0,3306.8,0.00708564]
[1762535153113,0.00311116,3307.3,3306.9,3.2078]
[1762535153415,0.00311116,3307.3,3307.2,0.2792]
[1762535153814,0.00311116,3307.3,3307.2,8.76935]
[1762535154009,3.2078,3308.1,3307.6,0.49009]
[1762535154210,3.69782,3308.1,3307.5,0.1633]
[1762535154712,3.69782,3308.1,3307.9,0.49004]
[1762535155014,0.00234962,3308.1,3307.9,3.69784]
[1762535155214,0.00234962,3308.1,3308.0,0.49003]
[1762535155512,0.49003,3308.0,3307.9,3.2078]
[1762535155704,0.49236962,3308.1,3307.5,3.3711]
[1762535156012,0.49236962,3308.1,3307.8,0.49005]
[1762535156214,0.49236962,3308.1,3307.5,3.3711]
[1762535156215,0.00234962,3308.1,3308.0,0.76923]
[1762535156409,0.00234962,3308.1,3308.0,0.2792]
[1762535156607,0.00234962,3308.1,3308.0,0.49003]
[1762535156806,0.00234962,3308.1,3308.0,0.77413]
[1762535157013,0.00234962,3308.1,3308.0,8.77413]
[1762535159310,4.962e-05,3308.1,3308.0,8.77413]
[1762535159511,3.2078,3309.0,3308.5,0.48996]
[1762535159716,0.48992,3308.8,3308.7,0.2841]
[1762535160013,3.2078,3309.0,3308.4,0.28863954]
[1762535160014,0.48996,3308.5,3308.4,0.28863954]
[1762535160202,0.48996,3308.5,3308.4,0.00453954]
[1762535160408,0.77436,3308.5,3308.4,0.00453954]
[1762535160607,0.49301082,3308.5,3308.4,0.00453954]
[1762535160809,0.77741082,3308.5,3308.4,0.00453954]
[1762535161008,8.00305082,3308.5,3307.1,3.2078]
[1762535161210,0.4902,3306.9,3306.8,0.1658461]
[1762535161414,0.4902,3306.9,3306.8,0.0025461]
[1762535161617,0.49018,3307.0,3306.8,0.0025461]
[1762535161816,0.4902,3306.9,3306.8,0.0025461]
[1762535162115,0.4902,3306.9,3306.8,0.1680461]
[1762535162315,0.4902,3306.9,3306.8,0.0025461]
[1762535162514,0.49024,3306.6,3306.5,0.00453954]
[1762535163014,0.00453954,3307.2,3306.6,0.49024]
[1762535163220,0.00453954,3307.2,3307.0,0.49017]
[1762535163521,0.00453954,3307.2,3307.0,0.00222609]
[1762535163815,0.49468954,3307.2,3307.0,0.00222609]
[1762535165316,0.49468954,3307.2,3306.5,0.00453954]
[1762535165317,0.49024,3306.6,3306.5,0.00453954]
[1762535166320,0.49024,3306.6,3306.5,0.00812246]
[1762535167222,0.49036,3305.8,3305.7,3.2078]
[1762535167425,0.49035,3305.9,3305.7,3.2078]
[1762535167623,0.49036,3305.8,3305.7,3.2078]
[1762535168117,0.4904,3305.5,3305.4,0.1655]
[1762535168322,0.49325259,3305.8,3305.4,0.17335562]
[1762535168516,0.00288259,3305.8,3305.4,0.00785562]
[1762535168718,0.4904,3305.5,3305.4,0.00785562]
[1762535169218,0.1612,3305.4,3304.4,3.2078]
[1762535169423,0.49055,3304.5,3304.4,3.2078]
[1762535170216,0.49055,3304.5,3304.4,3.21000236]
[1762535170417,0.00453954,3304.8,3304.4,3.21000236]
[1762535170613,0.00453954,3304.8,3304.5,0.49055]
[1762535170812,0.00453954,3304.8,3304.4,3.21000236]
[1762535171016,0.49041,3305.5,3305.1,0.49046]
[1762535171224,0.49041,3305.5,3305.2,0.49045]
[1762535171520,3.2078,3305.6,3304.8,4.93978672]
[1762535171827,0.49048,3305.0,3304.8,0.1655]
[1762535172013,0.49047,3305.1,3304.9,0.49049]
[1762535172217,3.21233954,3305.2,3304.5,1.56653672]
[1762535172517,0.49054,3304.6,3304.4,3.70057236]
[1762535172713,0.49055,3304.5,3304.4,3.21000236]
[1762535173121,0.49055,3304.5,3304.4,0.00220236]
[1762535173427,3.2078,3305.1,3304.4,0.49277236]
[1762535173730,0.49055,3304.5,3304.4,0.00220236]
[1762535174227,3.2078,3304.6,3304.4,0.00220236]
[1762535174420,0.49053,3304.7,3304.4,0.00220236]
[1762535174620,0.49054,3304.6,3304.4,0.00220236]
[1762535175319,3.2078,3305.0,3304.4,0.00220236]
[1762535175517,3.2078,3305.0,3304.4,0.49277236]
[1762535175827,3.2078,3305.0,3304.4,0.00220236]
[1762535176028,0.4906,3304.2,3304.1,0.00453954]
[1762535176327,0.49068,3303.7,3303.5,3.2078]
[1762535176927,3.2078,3304.2,3303.5,3.2078]
[1762535177227,3.2078,3304.6,3303.7,0.49067]
[1762535177431,0.49065,3303.9,3303.5,3.706893]
[1762535177722,0.49062,3304.1,3303.5,3.216203]
[1762535177921,3.2078,3304.6,3303.7,0.49067]
[1762535178117,3.2078,3304.6,3303.6,0.49068]
[1762535178324,3.2078,3304.6,3303.5,3.216203]
[1762535178630,0.49066,3303.8,3303.5,3.216203]
[1762535178839,3.2078,3304.6,3303.5,3.216203]
[1762535179132,0.49063,3304.0,3303.8,0.49066]
[1762535179430,0.49063,3304.0,3303.6,3.2078]
[1762535179431,3.2078,3304.6,3303.6,3.2078]
[1762535179621,0.49061,3304.1,3303.9,0.49064]
[1762535179822,0.49061,3304.1,3303.6,3.2078]
[1762535179823,0.49063,3304.0,3303.7,0.49066]
[1762535180028,3.2078,3304.6,3303.6,3.2078]
[1762535180220,0.49067,3303.7,3303.6,3.2078]
[1762535180731,0.49063,3304.1,3303.6,3.2078]
[1762535180932,3.2078,3304.8,3304.0,3.86392]
[1762535181135,0.49061,3304.1,3304.0,3.3733]
[1762535181431,3.2078,3304.4,3303.6,3.2078]
[1762535181622,0.49067,3303.7,3303.6,3.2078]
[1762535181823,0.49066,3303.8,3303.6,3.2078]
[1762535182023,0.49064,3304.0,3303.6,3.2078]
[1762535182226,3.2078,3304.4,3303.8,0.49066]
[1762535182422,3.2078,3304.4,3303.6,3.2078]
[1762535182626,0.49062,3304.1,3303.8,0.49066]
[1762535182830,3.2078,3304.8,3303.9,0.2841]
[1762535183024,3.2078,3304.8,3303.6,3.69847]
[1762535183025,3.2078,3304.4,3303.6,3.2078]
[1762535183225,0.49067,3303.7,3303.6,3.2078]
[1762535183637,3.2078,3304.4,3303.6,3.2078]
[1762535183928,0.49067,3303.7,3303.6,3.2078]
[1762535184129,0.0683,3304.7,3303.5,0.008403]
[1762535184130,0.49069,3303.6,3303.5,0.008403]
[1762535184329,3.2078,3304.4,3303.5,0.008403]
[1762535184632,0.49069,3303.6,3303.5,0.008403]
[1762535185035,3.2078,3304.4,3303.5,0.008403]
[1762535185232,0.49069,3303.6,3303.5,0.008403]
[1762535186725,3.2078,3304.4,3303.5,0.008403]
[1762535186928,0.49068,3303.6,3303.5,0.008403]
[1762535187129,0.49064,3303.9,3303.6,0.49068]
[1762535187433,3.2078,3304.8,3304.1,0.2431]
[1762535187626,0.49061,3304.1,3304.0,3.2078]
[1762535188031,0.49069,3303.6,3303.5,3.706903]
[1762535188834,3.2078,3304.4,3303.7,0.49067]
[1762535189034,3.2078,3304.4,3303.5,3.706893]
[1762535189233,0.49067,3303.7,3303.5,3.706893]
[1762535189533,3.2078,3304.4,3303.7,0.49067]
[1762535189723,0.49063,3304.1,3303.9,0.49063]
[1762535189921,0.49063,3304.0,3303.9,3.2078]
[1762535190128,3.2078,3304.4,3304.0,0.1506]
[1762535190639,0.49059,3304.3,3304.1,0.4906]
[1762535190828,0.49059,3304.3,3304.2,0.4906]
[1762535191028,3.2078,3304.8,3304.0,6.2034]
[1762535191223,0.49059,3304.3,3304.2,0.2431]
[1762535191430,0.49055,3304.5,3304.4,0.49056]
[1762535191630,3.2078,3304.8,3304.3,0.2431]
[1762535191832,0.49056,3304.5,3304.4,0.2431]
[1762535192337,0.49056,3304.5,3304.4,0.73367]
[1762535192731,0.00453954,3305.2,3305.1,0.2431]
[1762535192926,0.49499954,3305.2,3305.1,0.2431]
[1762535193145,0.49049,3305.0,3304.7,0.1506]
[1762535193331,0.49049,3305.0,3304.9,0.2431]
[1762535193528,0.49051,3304.8,3304.7,0.1506]
[1762535193840,0.00453954,3305.2,3304.8,0.49051]
[1762535194140,0.49051,3304.8,3304.7,0.1506]
[1762535194436,0.49057,3304.5,3304.2,1.07598672]
[1762535194633,0.4906,3304.3,3304.1,0.49061]
[1762535194833,0.49061,3304.1,3304.0,3.3584]
[1762535195438,0.49061,3304.1,3304.0,3.2078]
[1762535195738,3.2078,3304.8,3304.0,3.3584]
[1762535195936,0.49061,3304.1,3304.0,3.3584]
[1762535196633,0.49061,3304.1,3303.5,1.62770297]
[1762535196634,0.49067,3303.7,3303.6,1.07598672]
[1762535196937,0.73359,3303.6,3303.5,0.008403]
[1762535197133,1.08102332,3304.6,3303.5,0.008403]
[1762535197134,3.2078,3304.1,3303.5,0.008403]
[1762535197933,0.49069,3303.6,3303.5,0.008403]
[1762535198334,0.73359,3303.6,3303.5,0.008403]
[1762535198536,0.84447429,3303.6,3303.5,3e-06]
[1762535198739,0.49069,3303.6,3303.5,3e-06]
[1762535199241,0.73359,3303.6,3303.5,3e-06]